bitfinex-derivatives/quotes_SOLF0:USTF0_20241024
["timestamp","ask_amount","ask_price","bid_price","bid_amount"]
[1729781986484,15.02538669,175.8,175.72,4.46]
[1729781987787,2.8467,175.78,175.73,2.8472]
[1729781987977,15.02538669,175.8,175.73,2.8472]
[1729781988183,15.02538669,175.8,175.68,15.02538669]
[1729781988392,2.847,175.75,175.66,15.02538669]
[1729781988587,2.847,175.75,175.67,4.46]
[1729781988885,15.02538669,175.77,175.67,4.46]
[1729781989090,2.847,175.76,175.72,2.8475]
[1729781989494,15.02538669,175.77,175.66,15.02538669]
[1729781989688,2.8473,175.74,175.69,2.8479]
[1729781989887,2.8473,175.74,175.67,4.46]
[1729781990189,15.02538669,175.77,175.67,4.46]
[1729781990387,1.1843,175.78,175.72,2.8474]
[1729781990591,1.1843,175.78,175.68,15.02538669]
[1729781991190,2.8469,175.76,175.71,2.8476]
[1729781992396,2.8469,175.76,175.68,15.02538669]
[1729781992397,2.8471,175.75,175.7,2.8477]
[1729781992691,2.8471,175.75,175.68,15.02538669]
[1729781992893,2.8471,175.75,175.7,2.8478]
[1729781993593,1.1843,175.78,175.77,2.8467]
[1729781993798,1.1843,175.78,175.72,15.02538669]
[1729781994187,1.1843,175.78,175.75,2.8469]
[1729781994386,1.1843,175.78,175.71,4.48]
[1729781994586,2.8469,175.76,175.71,7.3276]
[1729781994790,16.20968669,175.78,175.65,15.02538669]
[1729781994791,15.02538669,175.75,175.65,15.02538669]
[1729781994992,15.02538669,175.75,175.68,4.48]
[1729781995588,2.8475,175.73,175.69,2.8479]
[1729781995798,2.8475,175.73,175.68,4.48]
[1729781996597,15.02538669,175.75,175.68,4.48]
[1729781996798,2.8473,175.74,175.7,2.8478]
[1729781997591,2.8469,175.76,175.72,2.8475]
[1729781998187,4.031,175.78,175.75,2.847]
[1729781998492,17.52688669,175.81,175.64,15.02538669]
[1729781998493,2.5015,175.81,175.74,15.02538669]
[1729781998689,2.5015,175.81,175.73,4.48]
[1729781998894,2.5015,175.81,175.78,2.8464]
[1729781999396,2.8457,175.83,175.79,2.8463]
[1729781999895,19.50538669,175.85,175.73,4.48]
[1729782000102,15.02538669,175.83,175.73,4.48]
[1729782000292,19.50538669,175.85,175.74,15.02538669]
[1729782000695,2.4439,175.86,175.77,15.02538669]
[1729782000897,2.4439,175.86,175.77,19.50538669]
[1729782001098,22.35048669,175.87,175.82,2.8457]
[1729782001300,22.35048669,175.87,175.79,15.02538669]
[1729782001301,4.48,175.87,175.79,15.02538669]
[1729782001601,15.02538669,175.89,175.79,15.02538669]
[1729782001805,15.02538669,175.89,175.83,2.8456]
[1729782002194,2.845,175.88,175.83,2.8456]
[1729782002800,26.46419548,175.91,175.81,4.46]
[1729782003004,26.46419548,175.91,175.86,2.8451]
[1729782003005,5.2703,175.91,175.86,2.8451]
[1729782003807,5.2703,175.91,175.81,4.46]
[1729782004108,2.4258,175.91,175.81,4.46]
[1729782004409,2.8446,175.9,175.86,2.8452]
[1729782004602,2.4258,175.91,175.81,4.46]
[1729782005009,1.2107,175.91,175.82,24.03839548]
[1729782005511,24.03839548,175.97,175.82,24.03839548]
[1729782005702,4.46,175.96,175.85,24.03839548]
[1729782005902,4.46,175.99,175.86,4.46]
[1729782006305,2.8436,175.97,175.93,2.8441]
[1729782006603,24.03839548,175.97,175.86,4.46]
[1729782007206,2.844,175.94,175.9,2.8446]
[1729782007407,24.03839548,175.97,175.9,2.8446]
[1729782007811,2.8439,175.95,175.86,4.46]
[1729782008021,24.03839548,175.97,175.91,2.8443]
[1729782008212,4.46,175.98,175.86,4.46]
[1729782008806,7.3033,175.98,175.86,4.46]
[1729782009005,2.8433,175.98,175.86,4.46]
[1729782009212,4.46,175.99,175.88,24.03839548]
[1729782009612,2.8432,175.99,175.91,2.8444]
[1729782009912,2.5289,176.02,175.88,24.03839548]
[1729782009913,2.5289,176.02,175.94,24.03839548]
[1729782010101,2.5289,176.02,175.97,2.8435]
[1729782010306,2.5289,176.02,175.95,4.46]
[1729782010706,1.2702,176.02,176.0,2.8428]
[1729782010903,1.2495,176.07,175.99,4.46]
[1729782011307,1.2495,176.07,176.03,2.8424]
[1729782011707,1.2495,176.07,175.99,4.46]
[1729782012716,4.46,176.09,176.0,4.46]
[1729782013013,7.3016,176.09,176.0,4.46]
[1729782013416,2.8422,176.05,176.0,2.8429]
[1729782013720,28.49839548,176.09,175.99,4.46]
[1729782014816,2.842,176.07,176.02,2.8427]
[1729782015016,28.49839548,176.09,176.02,2.8427]
[1729782015217,2.8421,176.06,176.02,2.8427]
[1729782015519,28.49839548,176.09,175.94,24.03839548]
[1729782015720,2.8428,176.02,175.95,4.46]
[1729782015916,2.8428,176.02,175.97,2.8434]
[1729782016116,2.8428,176.02,175.95,4.46]
[1729782016510,2.8431,176.0,175.95,7.3038]
[1729782016911,2.8431,176.0,175.95,2.8438]
[1729782017508,1.2091,176.01,175.93,4.46]
[1729782017813,1.2446,176.04,175.93,4.46]
[1729782018019,4.0871,176.04,175.99,2.843]
[1729782018320,1.2446,176.04,175.99,2.843]
[1729782018511,1.2446,176.04,175.93,4.46]
[1729782018712,2.8426,176.03,175.93,4.46]
[1729782018913,24.03839548,176.02,175.88,2.3801]
[1729782019115,2.8439,175.95,175.9,2.8446]
[1729782019420,24.03839548,176.0,175.88,4.46]
[1729782020010,24.03839548,175.97,175.82,61.42]
[1729782020314,6.9368,175.96,175.87,2.845]
[1729782020514,6.9368,175.96,175.83,28.49839548]
[1729782020720,2.8438,175.95,175.9,2.8445]
[1729782021423,2.8438,175.95,175.87,4.46]
[1729782021424,6.9368,175.96,175.87,4.46]
[1729782021618,9.7806,175.96,175.87,4.46]
[1729782022220,9.7806,175.96,175.91,2.8443]
[1729782022920,9.7806,175.96,175.87,4.46]
[1729782023117,5.66,175.96,175.92,2.8441]
[1729782023322,1.2,175.96,175.92,2.8441]
[1729782024216,4.0436,175.96,175.92,2.8441]
[1729782024415,1.2,175.96,175.9,2.8445]
[1729782024617,1.2,175.96,175.87,4.46]
[1729782025116,1.2,175.96,175.92,2.8442]
[1729782025517,1.2,175.96,175.87,4.46]
[1729782025728,2.8439,175.95,175.9,2.8446]
[1729782026422,24.03839548,175.94,175.82,61.42]
[1729782026627,24.03839548,175.91,175.77,24.82309548]
[1729782026921,28.49839548,175.91,175.78,4.46]
[1729782027126,28.49839548,175.91,175.79,4.46]
[1729782028227,2.845,175.88,175.84,2.8456]
[1729782029724,2.845,175.88,175.83,2.8457]
[1729782030313,2.845,175.88,175.84,2.8455]
[1729782031320,28.49839548,175.91,175.8,4.46]
[1729782031513,28.49839548,175.91,175.85,2.8453]
[1729782031721,28.49839548,175.91,175.8,4.46]
[1729782031916,2.845,175.88,175.84,2.8456]
[1729782033527,2.8454,175.86,175.82,2.8458]
[1729782034226,2.8454,175.86,175.74,25.23709548]
[1729782034227,2.8455,175.85,175.74,25.23709548]
[1729782034537,24.03839548,175.85,175.74,4.46]
[1729782034725,24.03839548,175.82,175.75,2.847]
[1729782035126,24.03839548,175.82,175.74,4.46]
[1729782035630,2.8464,175.79,175.75,2.847]
[1729782035825,24.03839548,175.82,175.74,4.46]
[1729782036134,2.8465,175.79,175.74,2.8471]
[1729782036318,24.03839548,175.82,175.74,2.8471]
[1729782036522,2.8469,175.76,175.71,2.8476]
[1729782036727,24.03839548,175.76,175.67,4.46]
[1729782037029,2.8471,175.75,175.7,2.8477]
[1729782038124,24.03839548,175.76,175.7,2.8477]
[1729782038425,2.8475,175.72,175.66,4.46]
[1729782038625,24.03839548,175.71,175.58,0.7883]
[1729782038931,1.1708,175.7,175.59,4.46]
[1729782040221,2.4225,175.75,175.59,4.46]
[1729782040222,24.03839548,175.73,175.59,4.46]
[1729782040428,2.4225,175.75,175.61,24.03839548]
[1729782040627,1.1848,175.75,175.66,24.03839548]
[1729782040821,1.1649,175.78,175.67,4.46]
[1729782041030,28.49839548,175.82,175.69,24.03839548]
[1729782041431,28.49839548,175.82,175.68,0.7883]
[1729782041628,2.8466,175.78,175.73,2.8472]
[1729782041832,28.49839548,175.82,175.68,0.7883]
[1729782042033,2.8465,175.79,175.73,2.8472]
[1729782042831,28.49839548,175.82,175.66,24.03839548]
[1729782043037,2.8468,175.77,175.71,2.8476]
[1729782043225,2.8468,175.77,175.67,4.46]
[1729782043429,6.939,175.78,175.67,4.46]
[1729782043936,2.479,175.78,175.69,24.03839548]
[1729782044136,2.479,175.78,175.75,2.8469]
[1729782044346,24.03839548,175.85,175.71,28.49839548]
[1729782044631,7.3056,175.84,175.74,2.8471]
[1729782044839,4.46,175.84,175.71,28.49839548]
[1729782045550,4.46,175.84,175.74,24.03839548]
[1729782045729,2.479,175.86,175.77,24.03839548]
[1729782046340,1.2827,175.86,175.77,24.03839548]
[1729782046642,4.46,175.89,175.77,24.03839548]
[1729782047632,7.3048,175.89,175.77,24.03839548]
[1729782048333,7.3048,175.89,175.84,2.8455]
[1729782049039,2.8448,175.89,175.84,2.8455]
[1729782049237,24.03839548,175.95,175.84,4.5]
[1729782049537,3.6601,175.96,175.84,4.5]
[1729782049747,3.6601,175.96,175.85,28.53839548]
[1729782049947,27.69849548,175.96,175.82,24.03839548]
[1729782050139,27.69849548,175.96,175.83,4.5]
[1729782050343,2.844,175.94,175.89,2.8447]
[1729782050843,27.69849548,175.96,175.85,4.5]
[1729782051043,2.8442,175.93,175.88,2.8449]
[1729782051648,27.69849548,175.96,175.85,4.5]
[1729782052437,2.4299,175.96,175.85,28.53839548]
[1729782052742,5.6717,176.02,175.88,24.03839548]
[1729782052937,2.8431,176.0,175.89,4.5]
[1729782053147,24.03839548,175.98,175.86,1.2128]
[1729782053348,2.8439,175.95,175.9,2.8445]
[1729782053543,24.03839548,175.98,175.87,4.5]
[1729782053845,24.03839548,175.95,175.87,4.5]
[1729782054046,24.03839548,175.92,175.81,1.1786]
[1729782054239,24.03839548,175.92,175.82,4.5]
[1729782054440,4.5,175.93,175.82,4.5]
[1729782054441,24.03839548,175.89,175.82,4.5]
[1729782054945,24.03839548,175.89,175.81,4.5]
[1729782055246,24.03839548,175.89,175.84,2.8454]
[1729782055247,26.88319548,175.89,175.84,2.8454]
[1729782055849,26.88319548,175.89,175.81,4.5]
[1729782056048,26.88319548,175.89,175.83,2.8457]
[1729782056347,24.03839548,175.89,175.8,4.5]
[1729782056543,24.03839548,175.87,175.73,24.03839548]
[1729782056744,2.4265,175.86,175.74,4.5]
[1729782056949,24.03839548,175.81,175.72,4.5]
[1729782057249,28.53839548,175.81,175.74,2.8471]
[1729782057448,2.8463,175.8,175.74,2.8471]
[1729782058149,24.03839548,175.78,175.72,4.5]
[1729782058446,24.03839548,175.78,175.69,4.5]
[1729782058649,2.8467,175.77,175.72,2.8475]
[1729782058944,24.03839548,175.78,175.68,4.5]
[1729782059248,2.8469,175.76,175.7,2.8477]
[1729782059639,2.8469,175.76,175.68,4.5]
[1729782059843,24.03839548,175.75,175.68,2.8481]
[1729782060334,24.03839548,175.75,175.65,4.5]
[1729782060535,24.03839548,175.72,175.62,4.5]
[1729782060949,2.8483,175.68,175.62,7.3491]
[1729782061243,28.53839548,175.69,175.55,1.966]
[1729782061441,2.849,175.63,175.58,2.8497]
[1729782061635,24.03839548,175.63,175.55,4.5]
[1729782061837,24.03839548,175.63,175.47,1.9662]
[1729782061838,24.03839548,175.63,175.52,4.5]
[1729782062040,2.8499,175.58,175.51,4.5]
[1729782062239,2.8499,175.58,175.5,4.5]
[1729782062445,28.53839548,175.61,175.5,4.5]
[1729782062639,24.03839548,175.63,175.5,4.5]
[1729782062841,26.51309548,175.66,175.51,24.03839548]
[1729782063042,2.4747,175.66,175.57,2.8499]
[1729782063345,24.03839548,175.72,175.57,28.53839548]
[1729782063751,28.53839548,175.72,175.6,24.03839548]
[1729782063942,24.03839548,175.72,175.61,4.5]
[1729782064346,32.17739548,175.75,175.61,4.5]
[1729782064540,27.67739548,175.75,175.61,5.7135]
[1729782064746,27.67739548,175.75,175.69,2.848]
[1729782064947,27.67739548,175.75,175.65,4.5]
[1729782065344,2.8475,175.73,175.66,2.8484]
[1729782065650,27.67739548,175.75,175.66,2.8484]
[1729782066244,24.03839548,175.72,175.65,4.5]
[1729782066450,28.53839548,175.72,175.62,4.5]
[1729782066846,24.03839548,175.67,175.55,5.7135]
[1729782067153,5.7164,175.66,175.55,29.75189548]
[1729782067348,1.2164,175.66,175.62,2.849]
[1729782069054,4.5,175.72,175.59,4.5]
[1729782069441,2.8478,175.71,175.64,2.8487]
[1729782069644,2.8478,175.71,175.59,4.5]
[1729782070045,4.5,175.72,175.68,2.8481]
[1729782070240,4.5,175.72,175.64,4.5]
[1729782070753,1.2677,175.74,175.68,2.848]
[1729782070953,1.2677,175.74,175.64,4.5]
[1729782071254,2.8475,175.73,175.64,4.5]
[1729782071552,1.2677,175.74,175.64,4.5]
[1729782071850,8.6149,175.74,175.68,2.8481]
[1729782072251,4.5,175.79,175.68,4.5]
[1729782072550,4.5,175.8,175.75,2.847]
[1729782072743,4.5,175.82,175.72,4.5]
[1729782072938,4.5,175.82,175.73,4.5]
[1729782073142,3.6928,175.83,175.8,2.8461]
[1729782073343,2.4865,175.83,175.74,4.5]
[1729782073643,2.4865,175.83,175.77,2.8467]
[1729782073644,2.846,175.82,175.77,2.8467]
[1729782073848,2.846,175.82,175.74,4.5]
[1729782075252,29.37059548,175.83,175.77,2.8466]
[1729782075642,26.52489548,175.83,175.77,2.8466]
[1729782076848,2.8465,175.79,175.74,2.8472]
[1729782079156,26.52489548,175.83,175.73,4.64]
[1729782079342,26.52489548,175.83,175.78,2.8465]
[1729782079343,5.3323,175.83,175.78,2.8465]
[1729782079543,2.4865,175.83,175.73,4.64]
[1729782079748,26.52489548,175.83,175.73,4.64]
[1729782081151,2.4865,175.83,175.73,4.64]
[1729782081349,5.8341,175.88,175.75,24.03839548]
[1729782081549,7.032,175.88,175.75,24.03839548]
[1729782082050,2.392,175.88,175.78,24.03839548]
[1729782082352,2.8445,175.91,175.86,2.8451]
[1729782082548,2.8445,175.91,175.73,5.6946]
[1729782082549,28.67839548,175.95,175.83,4.64]
[1729782083149,2.8445,175.91,175.87,2.845]
[1729782083352,28.67839548,175.95,175.83,4.64]
[1729782083653,2.8446,175.91,175.85,2.8453]
[1729782084256,2.8447,175.9,175.85,2.8453]
[1729782084459,24.03839548,175.92,175.83,4.64]
[1729782084653,24.03839548,175.92,175.84,2.8455]
[1729782084849,24.03839548,175.92,175.83,4.64]
[1729782084850,24.03839548,175.92,175.78,24.03839548]
[1729782085155,24.03839548,175.89,175.79,4.62]
[1729782085458,3.7324,175.88,175.79,4.62]
[1729782085959,6.5774,175.88,175.83,2.8456]
[1729782086351,6.5774,175.88,175.79,4.62]
[1729782086555,2.8446,175.91,175.8,24.03839548]
[1729782086755,2.4506,175.96,175.83,24.03839548]
[1729782086961,7.0706,175.96,175.87,2.845]
[1729782087161,7.0706,175.96,175.84,4.62]
[1729782087663,7.0706,175.96,175.88,2.8449]
[1729782087962,2.8442,175.93,175.88,2.8449]
[1729782088356,7.0706,175.96,175.84,4.62]
[1729782088557,2.8446,175.91,175.86,2.8452]
[1729782088864,24.03839548,175.92,175.82,4.62]
[1729782089064,2.845,175.88,175.83,2.8456]
[1729782089258,2.845,175.88,175.82,4.62]
[1729782089665,2.845,175.88,175.84,2.8454]
[1729782090757,2.8451,175.87,175.83,2.8457]
[1729782090958,28.65839548,175.92,175.83,2.8457]
[1729782091156,24.03839548,175.89,175.76,1.2109]
[1729782091359,24.03839548,175.87,175.77,4.62]
[1729782091660,2.8454,175.85,175.77,4.62]
[1729782092256,1.2171,175.86,175.72,24.82639548]
[1729782092452,24.03839548,175.84,175.72,0.788]
[1729782092752,2.8461,175.81,175.73,4.62]
[1729782093160,24.03839548,175.84,175.75,2.847]
[1729782093360,2.8461,175.81,175.75,4.62]
[1729782093755,24.03839548,175.84,175.77,2.8467]
[1729782093962,24.03839548,175.84,175.75,4.62]
[1729782094670,2.8461,175.81,175.76,2.8468]
[1729782094863,24.03839548,175.81,175.69,1.1757]
[1729782095068,1.2672,175.8,175.7,4.62]
[1729782095270,2.8464,175.79,175.74,2.8471]
[1729782095759,2.8464,175.79,175.7,4.62]
[1729782095968,5.8872,175.8,175.7,4.62]
[1729782096456,2.8465,175.79,175.73,2.8474]
[1729782096654,5.8872,175.8,175.73,2.8474]
[1729782096852,5.8872,175.8,175.7,4.62]
[1729782097764,2.8467,175.77,175.7,4.62]
[1729782098360,2.8467,175.77,175.67,0.7874]
[1729782098562,2.8473,175.74,175.68,4.62]
[1729782098761,24.03839548,175.75,175.67,4.62]
[1729782098971,1.2653,175.76,175.71,2.8476]
[1729782099366,4.1123,175.76,175.71,2.8476]
[1729782099663,24.03839548,175.73,175.63,61.44]
[1729782099868,24.03839548,175.73,175.64,4.62]
[1729782099869,2.8478,175.71,175.64,4.62]
[1729782100570,4.0326,175.72,175.67,2.8483]
[1729782100867,1.185,175.72,175.63,4.62]
[1729782101056,2.8481,175.69,175.63,7.4688]
[1729782101260,2.8481,175.69,175.63,4.62]
[1729782101671,26.88629548,175.7,175.65,2.8486]
[1729782101876,24.03839548,175.7,175.61,4.64]
[1729782102160,24.03839548,175.7,175.6,4.64]
[1729782102366,24.03839548,175.7,175.59,4.64]
[1729782102563,2.8485,175.67,175.59,4.64]
[1729782102963,24.03839548,175.7,175.59,4.64]
[1729782104070,24.03839548,175.67,175.54,61.44]
[1729782104263,2.4594,175.66,175.61,2.8492]
[1729782104473,2.4594,175.66,175.56,4.64]
[1729782104966,5.308,175.66,175.61,2.8493]
[1729782105168,2.4594,175.66,175.61,2.8493]
[1729782105369,2.4594,175.66,175.56,4.64]
[1729782105873,2.8487,175.65,175.61,2.8493]
[1729782106260,2.8487,175.65,175.56,4.64]
[1729782106572,2.4594,175.66,175.56,4.64]
[1729782107865,24.03839548,175.65,175.54,61.44]
[1729782108067,24.03839548,175.65,175.4,8.5581]
[1729782108068,24.03839548,175.62,175.44,67.1839]
[1729782108264,24.03839548,175.59,175.45,8.82549919]
[1729782108466,1.2457,175.58,175.46,1.04739919]
[1729782109371,1.2457,175.58,175.55,2.8502]
[1729782110286,1.2457,175.58,175.54,2.8504]
[1729782111569,1.2457,175.58,175.51,4.6]
[1729782111771,1.2457,175.58,175.55,2.8503]
[1729782112573,2.8501,175.57,175.53,2.8506]
[1729782112775,1.2457,175.58,175.51,4.6]
[1729782112976,1.2457,175.58,175.44,91.22229548]
[1729782113275,26.88859548,175.56,175.45,5.64752651]
[1729782113476,26.88859548,175.56,175.46,1.04752651]
[1729782113673,26.88859548,175.56,175.52,2.8506]
[1729782113674,24.03839548,175.56,175.52,2.8506]
[1729782113874,1.2319,175.57,175.49,4.6]
[1729782114078,1.2457,175.58,175.49,4.6]
[1729782114781,1.2457,175.58,175.55,2.8503]
[1729782116178,1.1645,175.61,175.6,2.8495]
[1729782116385,1.1645,175.61,175.53,4.6]
[1729782116978,25.27699548,175.6,175.53,4.6]
[1729782117380,2.8496,175.59,175.51,4.6]
[1729782117780,2.8496,175.59,175.53,2.8505]
[1729782117982,2.8496,175.59,175.51,4.6]
[1729782118681,2.8497,175.59,175.51,4.6]
[1729782119688,2.8497,175.59,175.54,2.8503]
[1729782119889,2.8497,175.59,175.51,4.6]
[1729782120292,24.03839548,175.57,175.51,2.8508]
[1729782120690,28.63839548,175.57,175.51,2.8508]
[1729782121697,28.63839548,175.57,175.42,24.03839548]
[1729782121698,24.03839548,175.55,175.49,2.8512]
[1729782122096,24.03839548,175.55,175.47,4.6]
[1729782122298,2.8505,175.54,175.5,2.8511]
[1729782122901,2.8508,175.53,175.49,2.8512]
[1729782123103,24.03839548,175.55,175.42,24.03839548]
[1729782123305,24.03839548,175.55,175.45,4.6]
[1729782123498,24.03839548,175.52,175.42,4.6]
[1729782123694,3.6674,175.51,175.39,1.1768]
[1729782123895,3.6674,175.51,175.4,4.6]
[1729782124090,2.8512,175.5,175.46,2.8517]
[1729782124997,2.8513,175.49,175.46,2.8517]
[1729782125197,24.03839548,175.49,175.43,2.8521]
[1729782125600,28.63839548,175.49,175.35,67.227]
[1729782125903,28.63839548,175.49,175.38,4.6]
[1729782126097,2.8517,175.47,175.38,4.6]
[1729782126596,28.63839548,175.49,175.43,2.8521]
[1729782126903,28.63839548,175.49,175.38,4.6]
[1729782127305,2.8518,175.46,175.42,2.8524]
[1729782127503,28.63839548,175.49,175.34,0.7888]
[1729782127705,24.03839548,175.46,175.35,5.6482259]
[1729782128007,4.6,175.45,175.35,4.6]
[1729782128605,2.8524,175.43,175.39,2.8528]
[1729782128996,2.8524,175.43,175.35,4.6]
[1729782129301,2.8524,175.43,175.4,2.8527]
[1729782129511,3.6674,175.51,175.35,4.6]
[1729782129512,24.03839548,175.49,175.35,4.6]
[1729782129800,3.6674,175.51,175.37,24.03839548]
[1729782129998,3.6674,175.51,175.4,24.03839548]
[1729782130195,3.6674,175.51,175.41,4.6]
[1729782130403,1.2208,175.51,175.5,2.8511]
[1729782130606,4.6,175.55,175.42,24.03839548]
[1729782130906,1.1888,175.56,175.51,2.8508]
[1729782131097,5.7888,175.56,175.48,4.6]
[1729782131298,1.1888,175.56,175.48,4.6]
[1729782131513,1.1888,175.56,175.53,2.8506]
[1729782132705,28.63839548,175.59,175.48,4.6]
[1729782133006,2.4421,175.6,175.48,28.63839548]
[1729782133201,5.7888,175.62,175.51,24.03839548]
[1729782133504,1.1888,175.62,175.54,24.03839548]
[1729782133711,5.7873,175.65,175.6,2.8493]
[1729782134010,29.82569548,175.65,175.56,4.6]
[1729782134195,29.82569548,175.65,175.55,4.6]
[1729782134509,2.8491,175.63,175.57,2.8498]
[1729782134810,2.8491,175.63,175.55,4.6]
[1729782135103,29.82569548,175.65,175.55,4.6]
[1729782135499,1.1873,175.65,175.55,4.6]
[1729782135902,4.6,175.67,175.55,4.6]
[1729782136506,4.6,175.67,175.62,2.849]
[1729782136695,4.6,175.67,175.55,4.6]
[1729782136901,2.3456,175.69,175.56,24.03839548]
[1729782137302,2.8492,175.62,175.55,4.6]
[1729782137503,24.03839548,175.67,175.55,4.6]
[1729782137807,24.03839548,175.67,175.55,28.63839548]
[1729782138195,24.03839548,175.67,175.58,2.8497]
[1729782138396,24.03839548,175.67,175.59,4.58]
[1729782138606,2.8489,175.64,175.56,4.58]
[1729782138908,24.03839548,175.67,175.59,2.8495]
[1729782138909,1.1808,175.66,175.59,2.8495]
[1729782139305,2.8487,175.65,175.59,2.8495]
[1729782139503,2.8487,175.65,175.6,2.8495]
[1729782139701,1.1808,175.66,175.6,2.8495]
[1729782139903,4.0294,175.66,175.6,2.8495]
[1729782140103,1.1568,175.69,175.56,4.58]
[1729782140411,1.1568,175.69,175.57,24.03839548]
[1729782140702,1.1568,175.69,175.64,2.8487]
[1729782140904,4.0049,175.69,175.64,2.8487]
[1729782141310,25.28499548,175.71,175.66,2.8485]
[1729782141311,1.2466,175.71,175.66,2.8485]
[1729782141504,1.2466,175.71,175.61,4.58]
[1729782142610,1.2466,175.71,175.67,2.8483]
[1729782142808,1.159,175.72,175.61,4.58]
[1729782143011,7.4274,175.73,175.68,2.8481]
[1729782143213,2.367,175.78,175.66,28.61839548]
[1729782143507,1.1567,175.78,175.69,24.03839548]
[1729782143812,2.4255,175.86,175.74,24.03839548]
[1729782144000,2.4255,175.86,175.81,2.846]
[1729782144709,7.0055,175.86,175.71,24.03839548]
[1729782144905,24.03839548,175.85,175.72,4.58]
[1729782145711,2.846,175.82,175.76,2.8469]
[1729782145908,24.03839548,175.82,175.73,4.58]
[1729782146108,28.61839548,175.82,175.72,4.58]
[1729782146613,4.58,175.82,175.72,4.58]
[1729782146801,7.0055,175.86,175.74,24.03839548]
[1729782147206,25.19509548,175.88,175.74,24.03839548]
[1729782147416,1.1567,175.88,175.74,24.03839548]
[1729782147708,4.58,175.89,175.84,2.8456]
[1729782148217,4.58,175.89,175.81,4.58]
[1729782148810,2.8445,175.91,175.85,2.8453]
[1729782149012,1.2516,175.96,175.83,24.03839548]
[1729782149206,1.2516,175.96,175.85,4.58]
[1729782149207,5.8316,175.96,175.85,4.58]
[1729782149413,24.03839548,175.99,175.86,24.03839548]
[1729782149609,25.22419548,175.99,175.86,24.03839548]
[1729782150413,25.22419548,175.99,175.85,4.58]
[1729782150912,24.03839548,175.93,175.81,1.1665]
[1729782151105,24.03839548,175.93,175.82,4.58]
[1729782151306,2.8446,175.9,175.82,4.58]
[1729782152604,2.8448,175.89,175.83,2.8457]
[1729782152811,1.2586,175.92,175.82,4.58]
[1729782153007,24.03839548,175.9,175.77,24.03839548]
[1729782153214,2.8454,175.85,175.79,2.8463]
[1729782153410,24.03839548,175.87,175.72,85.53839548]
[1729782153615,4.58,175.86,175.73,5.62589682]
[1729782153916,4.58,175.86,175.75,24.03839548]
[1729782154409,2.8455,175.85,175.79,2.8463]
[1729782154715,4.58,175.86,175.75,24.03839548]
[1729782154716,4.58,175.86,175.75,4.58]
[1729782156008,2.8457,175.84,175.75,4.58]
[1729782156408,2.8457,175.84,175.78,2.8464]
[1729782156820,2.8457,175.84,175.75,4.58]
[1729782157420,4.58,175.86,175.75,4.58]
[1729782157627,1.165,175.85,175.75,4.58]
[1729782158014,24.03839548,175.84,175.72,61.5]
[1729782158220,24.03839548,175.81,175.73,4.58]
[1729782158414,2.8467,175.78,175.73,4.58]
[1729782158618,2.8467,175.78,175.7,4.58]
[1729782158814,2.8467,175.78,175.73,2.8473]
[1729782159015,1.1666,175.8,175.7,4.58]
[1729782159525,1.2222,175.83,175.72,24.03839548]
[1729782160523,4.068,175.83,175.77,2.8466]
[1729782161024,2.8463,175.8,175.75,4.58]
[1729782161722,2.8461,175.81,175.75,4.58]
[1729782161911,24.03839548,175.81,175.72,4.58]
[1729782162118,1.2513,175.8,175.71,4.58]